[Event "Titled Tuesday Blitz March 21 Early 2023"]
[White "Skliarov, Viktor"]
[Black "ritanovikova"]
[WhiteFideId "14106736"]
[WhiteElo "2289"]
[BlackElo "2216"]
[Result "1-0"]
[Round "01"]
[TimeControl "180+2"]
[Date "2023.03.21"]
[WhiteClock "0:00:17"]
[BlackClock "0:00:14"]

1. e4 {[%clk 0:02:57]}  d5 {[%clk 0:02:56]} 2. exd5 {[%clk 0:02:57]}  Qxd5 {[%clk 0:02:57]} 3. Nc3 {[%clk 0:02:58]}  Qd6 {[%clk 0:02:56]} 4. d4 {[%clk 0:02:57]}  Nf6 {[%clk 0:02:56]} 5. Nf3 {[%clk 0:02:58]}  c6 {[%clk 0:02:53]} 6. Ne5 {[%clk 0:02:56]}  Nbd7 {[%clk 0:02:51]} 7. Nc4 {[%clk 0:02:55]}  Qc7 {[%clk 0:02:51]} 8. g3 {[%clk 0:02:54]}  Nb6 {[%clk 0:02:46]} 9. Bf4 {[%clk 0:02:52]}  Qd8 {[%clk 0:02:46]} 10. Qe2 {[%clk 0:02:18]}  Bg4 {[%clk 0:02:37]} 11. f3 {[%clk 0:01:55]}  Bh5 {[%clk 0:02:26]} 12. Nd6+ {[%clk 0:01:46]}  Kd7 {[%clk 0:02:22]} 13. Nxb7 {[%clk 0:01:45]}  Qc8 {[%clk 0:02:13]} 14. Nc5+ {[%clk 0:01:43]}  Ke8 {[%clk 0:02:07]} 15. O-O-O {[%clk 0:01:31]}  e6 {[%clk 0:02:07]} 16. g4 {[%clk 0:01:25]}  Bg6 {[%clk 0:02:03]} 17. h4 {[%clk 0:01:25]}  h5 {[%clk 0:01:55]} 18. Bg5 {[%clk 0:01:02]}  Nfd5 {[%clk 0:01:53]} 19. Nxd5 {[%clk 0:00:56]}  cxd5 {[%clk 0:01:49]} 20. Qb5+ {[%clk 0:00:54]}  Nd7 {[%clk 0:01:43]} 21. Qxd7+ {[%clk 0:00:49]}  Qxd7 {[%clk 0:01:42]} 22. Nxd7 {[%clk 0:00:50]}  Kxd7 {[%clk 0:01:42]} 23. Bb5+ {[%clk 0:00:48]}  Kc7 {[%clk 0:01:39]} 24. Bf4+ {[%clk 0:00:44]}  Bd6 {[%clk 0:01:39]} 25. Bxd6+ {[%clk 0:00:43]}  Kxd6 {[%clk 0:01:40]} 26. g5 {[%clk 0:00:43]}  a6 {[%clk 0:01:37]} 27. Bd3 {[%clk 0:00:43]}  Bxd3 {[%clk 0:01:33]} 28. Rxd3 {[%clk 0:00:44]}  g6 {[%clk 0:01:30]} 29. f4 {[%clk 0:00:43]}  Rhc8 {[%clk 0:01:29]} 30. c3 {[%clk 0:00:38]}  a5 {[%clk 0:01:29]} 31. Kc2 {[%clk 0:00:36]}  a4 {[%clk 0:01:28]} 32. Rb1 {[%clk 0:00:35]}  f6 {[%clk 0:01:19]} 33. Re1 {[%clk 0:00:33]}  Rf8 {[%clk 0:01:12]} 34. Rde3 {[%clk 0:00:32]}  Rae8 {[%clk 0:01:12]} 35. b3 {[%clk 0:00:32]}  axb3+ {[%clk 0:01:11]} 36. axb3 {[%clk 0:00:32]}  fxg5 {[%clk 0:01:09]} 37. fxg5 {[%clk 0:00:33]}  Rf2+ {[%clk 0:01:08]} 38. R1e2 {[%clk 0:00:32]}  Rf4 {[%clk 0:01:08]} 39. Rh2 {[%clk 0:00:28]}  Rc8 {[%clk 0:01:07]} 40. Kd3 {[%clk 0:00:27]}  Rb8 {[%clk 0:01:06]} 41. b4 {[%clk 0:00:21]}  Rbf8 {[%clk 0:00:58]} 42. Ra2 {[%clk 0:00:21]}  Rxh4 {[%clk 0:00:53]} 43. Ra6+ {[%clk 0:00:21]}  Kd7 {[%clk 0:00:53]} 44. Raxe6 {[%clk 0:00:20]}  Rf5 {[%clk 0:00:46]} 45. Rxg6 {[%clk 0:00:20]}  Rg4 {[%clk 0:00:46]} 46. Rg7+ {[%clk 0:00:18]}  Kd6 {[%clk 0:00:43]} 47. Re8 {[%clk 0:00:17]}  Rf3+ {[%clk 0:00:36]} 48. Kc2 {[%clk 0:00:16]}  Rg2+ {[%clk 0:00:32]} 49. Kb3 {[%clk 0:00:16]}  Rgg3 {[%clk 0:00:30]} 50. Rc8 {[%clk 0:00:16]}  h4 {[%clk 0:00:28]} 51. b5 {[%clk 0:00:16]}  h3 {[%clk 0:00:25]} 52. b6 {[%clk 0:00:16]}  h2 {[%clk 0:00:23]} 53. b7 {[%clk 0:00:16]}  h1=Q {[%clk 0:00:15]} 54. b8=Q+ {[%clk 0:00:16]}  Ke6 {[%clk 0:00:14]} 55. Qe5# {[%clk 0:00:17]} 1-0


[Site "https://www.chess.com"]

[Event "Titled Tuesday Blitz March 21 Early 2023"]
[White "Ardila, Oscar Humberto"]
[Black "Vlassov, Nikolai"]
[WhiteFideId "4404742"]
[BlackFideId "4103360"]
[WhiteElo "1911"]
[BlackElo "2324"]
[Result "1-0"]
[Round "01"]
[TimeControl "180+2"]
[Date "2023.03.21"]
[WhiteClock "0:00:39"]
[BlackClock "0:00:01"]

1. d4 {[%clk 0:02:59]}  Nf6 {[%clk 0:02:56]} 2. Nf3 {[%clk 0:02:58]}  e6 {[%clk 0:02:56]} 3. Bg5 {[%clk 0:02:56]}  h6 {[%clk 0:02:55]} 4. Bh4 {[%clk 0:02:56]}  c5 {[%clk 0:02:55]} 5. c3 {[%clk 0:02:54]}  b6 {[%clk 0:02:55]} 6. Nbd2 {[%clk 0:02:54]}  Bb7 {[%clk 0:02:55]} 7. e3 {[%clk 0:02:54]}  Be7 {[%clk 0:02:55]} 8. Bd3 {[%clk 0:02:54]}  g5 {[%clk 0:02:54]} 9. Bg3 {[%clk 0:02:53]}  g4 {[%clk 0:02:55]} 10. Ne5 {[%clk 0:02:36]}  Rg8 {[%clk 0:02:53]} 11. O-O {[%clk 0:02:32]}  d6 {[%clk 0:02:51]} 12. Nec4 {[%clk 0:02:27]}  b5 {[%clk 0:02:49]} 13. Na3 {[%clk 0:02:15]}  b4 {[%clk 0:02:45]} 14. Bb5+ {[%clk 0:02:12]}  Kf8 {[%clk 0:02:44]} 15. Nc2 {[%clk 0:02:06]}  bxc3 {[%clk 0:02:44]} 16. bxc3 {[%clk 0:02:05]}  Nd5 {[%clk 0:02:43]} 17. Nb1 {[%clk 0:01:38]}  Qb6 {[%clk 0:02:37]} 18. c4 {[%clk 0:01:36]}  Nc7 {[%clk 0:02:32]} 19. Nc3 {[%clk 0:01:34]}  cxd4 {[%clk 0:02:26]} 20. Qxd4 {[%clk 0:01:26]}  Qxd4 {[%clk 0:02:22]} 21. exd4 {[%clk 0:01:22]}  h5 {[%clk 0:02:11]} 22. Rfe1 {[%clk 0:01:18]}  h4 {[%clk 0:02:10]} 23. Bf4 {[%clk 0:01:18]}  Rg6 {[%clk 0:02:03]} 24. Rad1 {[%clk 0:01:16]}  a6 {[%clk 0:01:33]} 25. Ba4 {[%clk 0:01:15]}  Bc6 {[%clk 0:01:23]} 26. Nb4 {[%clk 0:01:09]}  Bxa4 {[%clk 0:01:19]} 27. Nxa4 {[%clk 0:01:09]}  a5 {[%clk 0:01:03]} 28. Nb6 {[%clk 0:01:07]}  axb4 {[%clk 0:01:00]} 29. Nxa8 {[%clk 0:01:06]}  Nxa8 {[%clk 0:01:01]} 30. c5 {[%clk 0:01:02]}  Nc6 {[%clk 0:00:29]} 31. cxd6 {[%clk 0:01:02]}  Bf6 {[%clk 0:00:28]} 32. Be5 {[%clk 0:01:01]}  Nb6 {[%clk 0:00:26]} 33. Rc1 {[%clk 0:01:00]}  Nd8 {[%clk 0:00:21]} 34. Rc7 {[%clk 0:00:55]}  Nd5 {[%clk 0:00:20]} 35. Rc8 {[%clk 0:00:51]}  Ke8 {[%clk 0:00:20]} 36. Rb8 {[%clk 0:00:51]}  Kd7 {[%clk 0:00:20]} 37. Rc1 {[%clk 0:00:50]}  Bxe5 {[%clk 0:00:15]} 38. dxe5 {[%clk 0:00:49]}  Rg5 {[%clk 0:00:16]} 39. Rcc8 {[%clk 0:00:48]}  Rxe5 {[%clk 0:00:13]} 40. Rxd8+ {[%clk 0:00:47]}  Kc6 {[%clk 0:00:14]} 41. Rbc8+ {[%clk 0:00:44]}  Kb7 {[%clk 0:00:14]} 42. Kf1 {[%clk 0:00:44]}  f5 {[%clk 0:00:06]} 43. d7 {[%clk 0:00:43]}  Nb6 {[%clk 0:00:03]} 44. Rc1 {[%clk 0:00:40]}  Rd5 {[%clk 0:00:02]} 45. Re8 {[%clk 0:00:39]}  Nxd7 {[%clk 0:00:01]} 46. Rxe6 {[%clk 0:00:39]} 1-0


[Site "https://www.chess.com"]

[Event "Titled Tuesday Blitz March 21 Early 2023"]
[White "Fernandez Hernandez, Gerardo"]
[Black "Fromm, Marius"]
[WhiteFideId "2207400"]
[BlackFideId "12993190"]
[WhiteElo "2203"]
[BlackElo "2325"]
[Result "0-1"]
[Round "01"]
[TimeControl "180+2"]
[Date "2023.03.21"]
[WhiteClock "0:00:01"]
[BlackClock "0:00:53"]

1. e4 {[%clk 0:03:00]}  c5 {[%clk 0:02:56]} 2. d3 {[%clk 0:03:00]}  Nc6 {[%clk 0:02:55]} 3. g3 {[%clk 0:02:59]}  g6 {[%clk 0:02:54]} 4. Bg2 {[%clk 0:03:00]}  Bg7 {[%clk 0:02:55]} 5. f4 {[%clk 0:03:00]}  e6 {[%clk 0:02:53]} 6. Nf3 {[%clk 0:03:00]}  Nge7 {[%clk 0:02:54]} 7. O-O {[%clk 0:02:56]}  O-O {[%clk 0:02:54]} 8. c3 {[%clk 0:02:56]}  b6 {[%clk 0:02:53]} 9. Be3 {[%clk 0:02:56]}  Bb7 {[%clk 0:02:51]} 10. d4 {[%clk 0:02:56]}  d5 {[%clk 0:02:48]} 11. e5 {[%clk 0:02:36]}  Rc8 {[%clk 0:02:46]} 12. Na3 {[%clk 0:02:21]}  Ba6 {[%clk 0:02:30]} 13. Re1 {[%clk 0:02:19]}  Qd7 {[%clk 0:02:23]} 14. Qd2 {[%clk 0:02:14]}  Rc7 {[%clk 0:02:21]} 15. dxc5 {[%clk 0:01:50]}  bxc5 {[%clk 0:02:21]} 16. Bxc5 {[%clk 0:01:51]}  Rb8 {[%clk 0:02:08]} 17. Bd6 {[%clk 0:01:46]}  Nf5 {[%clk 0:02:05]} 18. Bxc7 {[%clk 0:01:44]}  Qxc7 {[%clk 0:02:06]} 19. g4 {[%clk 0:01:35]}  Nfe7 {[%clk 0:02:06]} 20. Rac1 {[%clk 0:01:29]}  Qb6+ {[%clk 0:01:53]} 21. Kh1 {[%clk 0:01:04]}  Qxb2 {[%clk 0:01:53]} 22. Qxb2 {[%clk 0:01:03]}  Rxb2 {[%clk 0:01:54]} 23. Rc2 {[%clk 0:01:03]}  Rb8 {[%clk 0:01:52]} 24. Rb1 {[%clk 0:01:01]}  Rc8 {[%clk 0:01:50]} 25. Nb5 {[%clk 0:01:00]}  f6 {[%clk 0:01:38]} 26. exf6 {[%clk 0:00:48]}  Bxf6 {[%clk 0:01:39]} 27. g5 {[%clk 0:00:40]}  Bg7 {[%clk 0:01:37]} 28. Bh3 {[%clk 0:00:40]}  Nf5 {[%clk 0:01:33]} 29. Rbb2 {[%clk 0:00:09]}  h6 {[%clk 0:01:05]} 30. Bxf5 {[%clk 0:00:08]}  exf5 {[%clk 0:01:04]} 31. Nbd4 {[%clk 0:00:08]}  Na5 {[%clk 0:01:00]} 32. gxh6 {[%clk 0:00:04]}  Bxh6 {[%clk 0:01:00]} 33. Ne6 {[%clk 0:00:03]}  Bd3 {[%clk 0:00:57]} 34. Rd2 {[%clk 0:00:03]}  Be4 {[%clk 0:00:58]} 35. Kg2 {[%clk 0:00:02]}  Nc4 {[%clk 0:00:57]} 36. Nd4 {[%clk 0:00:02]}  Bxf4 {[%clk 0:00:54]} 37. Re2 {[%clk 0:00:01]}  Nxb2 {[%clk 0:00:53]} 0-1


[Site "https://www.chess.com"]

[Event "Titled Tuesday Blitz March 21 Early 2023"]
[White "Panesso Rivera, Henry"]
[Black "Putri, Regita Desyari"]
[WhiteFideId "4402707"]
[BlackFideId "7109083"]
[WhiteElo "2345"]
[BlackElo "1930"]
[Result "0-1"]
[Round "01"]
[TimeControl "180+2"]
[Date "2023.03.21"]
[WhiteClock "0:00:02"]
[BlackClock "0:00:04"]

1. Nf3 {[%clk 0:03:00]}  Nf6 {[%clk 0:02:58]} 2. b3 {[%clk 0:03:00]}  d5 {[%clk 0:02:48]} 3. Bb2 {[%clk 0:03:01]}  c5 {[%clk 0:02:43]} 4. e3 {[%clk 0:02:59]}  Nc6 {[%clk 0:02:41]} 5. Bb5 {[%clk 0:02:55]}  Qb6 {[%clk 0:02:36]} 6. Na3 {[%clk 0:02:52]}  a6 {[%clk 0:02:34]} 7. Bxc6+ {[%clk 0:02:47]}  Qxc6 {[%clk 0:02:35]} 8. c4 {[%clk 0:02:43]}  Bg4 {[%clk 0:02:28]} 9. h3 {[%clk 0:02:26]}  Bh5 {[%clk 0:02:03]} 10. g4 {[%clk 0:02:19]}  Bg6 {[%clk 0:02:03]} 11. Ne5 {[%clk 0:02:18]}  Qd6 {[%clk 0:01:58]} 12. cxd5 {[%clk 0:01:15]}  Qxd5 {[%clk 0:01:53]} 13. O-O {[%clk 0:01:10]}  b5 {[%clk 0:01:47]} 14. d3 {[%clk 0:00:59]}  Rd8 {[%clk 0:01:44]} 15. e4 {[%clk 0:00:58]}  Qb7 {[%clk 0:01:25]} 16. Qe2 {[%clk 0:00:52]}  Nd7 {[%clk 0:01:16]} 17. f4 {[%clk 0:00:44]}  Nxe5 {[%clk 0:01:15]} 18. Bxe5 {[%clk 0:00:45]}  f6 {[%clk 0:01:12]} 19. Bb2 {[%clk 0:00:45]}  Bf7 {[%clk 0:00:59]} 20. Nc2 {[%clk 0:00:44]}  Qd7 {[%clk 0:00:52]} 21. Rad1 {[%clk 0:00:44]}  h5 {[%clk 0:00:50]} 22. d4 {[%clk 0:00:45]}  c4 {[%clk 0:00:49]} 23. d5 {[%clk 0:00:42]}  hxg4 {[%clk 0:00:48]} 24. hxg4 {[%clk 0:00:43]}  Rc8 {[%clk 0:00:44]} 25. b4 {[%clk 0:00:42]}  c3 {[%clk 0:00:43]} 26. Bc1 {[%clk 0:00:42]}  Rc4 {[%clk 0:00:39]} 27. f5 {[%clk 0:00:42]}  Qc7 {[%clk 0:00:37]} 28. Qg2 {[%clk 0:00:38]}  Qb6+ {[%clk 0:00:21]} 29. Be3 {[%clk 0:00:38]}  Qd6 {[%clk 0:00:21]} 30. a3 {[%clk 0:00:38]}  Qe5 {[%clk 0:00:18]} 31. Bd4 {[%clk 0:00:38]}  Qc7 {[%clk 0:00:17]} 32. Bc5 {[%clk 0:00:37]}  e6 {[%clk 0:00:12]} 33. Bxf8 {[%clk 0:00:36]}  Kxf8 {[%clk 0:00:13]} 34. dxe6 {[%clk 0:00:35]}  Be8 {[%clk 0:00:13]} 35. Rf3 {[%clk 0:00:31]}  Qb6+ {[%clk 0:00:13]} 36. Qf2 {[%clk 0:00:31]}  Qc6 {[%clk 0:00:12]} 37. Rf4 {[%clk 0:00:18]}  Rxe4 {[%clk 0:00:13]} 38. Qg2 {[%clk 0:00:19]}  Rc4 {[%clk 0:00:11]} 39. Qxc6 {[%clk 0:00:18]}  Rxc6 {[%clk 0:00:10]} 40. Kf2 {[%clk 0:00:18]}  Rh2+ {[%clk 0:00:08]} 41. Ke3 {[%clk 0:00:17]}  Rxc2 {[%clk 0:00:09]} 42. Rh1 {[%clk 0:00:16]}  Rg2 {[%clk 0:00:08]} 43. Kf3 {[%clk 0:00:13]}  Ra2 {[%clk 0:00:06]} 44. Rh8+ {[%clk 0:00:06]}  Ke7 {[%clk 0:00:04]} 45. Rh7 {[%clk 0:00:06]}  c2 {[%clk 0:00:04]} 46. Rxg7+ {[%clk 0:00:07]}  Kd6 {[%clk 0:00:05]} 47. Rd4+ {[%clk 0:00:06]}  Ke5 {[%clk 0:00:05]} 48. Re4+ {[%clk 0:00:05]}  Kd5 {[%clk 0:00:06]} 49. Rd7+ {[%clk 0:00:06]}  Bxd7 {[%clk 0:00:05]} 50. exd7 {[%clk 0:00:07]}  Rd6 {[%clk 0:00:06]} 51. Re1 {[%clk 0:00:05]}  Rxd7 {[%clk 0:00:05]} 52. g5 {[%clk 0:00:06]}  fxg5 {[%clk 0:00:04]} 53. Kg4 {[%clk 0:00:07]}  Kc4 {[%clk 0:00:04]} 54. f6 {[%clk 0:00:04]}  Rd1 {[%clk 0:00:05]} 55. f7 {[%clk 0:00:05]}  Rxe1 {[%clk 0:00:04]} 56. f8=Q {[%clk 0:00:05]}  c1=Q {[%clk 0:00:05]} 57. Qf7+ {[%clk 0:00:06]}  Kc3 {[%clk 0:00:05]} 58. Qf6+ {[%clk 0:00:06]}  Kb3 {[%clk 0:00:05]} 59. Qf3+ {[%clk 0:00:05]}  Re3 {[%clk 0:00:04]} 60. Qb7 {[%clk 0:00:04]}  Qg1+ {[%clk 0:00:03]} 61. Kf5 {[%clk 0:00:05]}  Rf2+ {[%clk 0:00:03]} 62. Kg6 {[%clk 0:00:05]}  g4 {[%clk 0:00:04]} 63. Qd5+ {[%clk 0:00:02]}  Kxa3 {[%clk 0:00:04]} 0-1


[Site "https://www.chess.com"]

[Event "Titled Tuesday Blitz March 21 Early 2023"]
[White "Pniaczek, Marek"]
[Black "Alex_Sahakyan2006"]
[WhiteFideId "21800421"]
[WhiteElo "2138"]
[BlackElo "2625"]
[Result "1-0"]
[Round "01"]
[TimeControl "180+2"]
[Date "2023.03.21"]
[WhiteClock "0:00:05"]
[BlackClock "0:00:03"]

1. e4 {[%clk 0:02:58]}  c6 {[%clk 0:02:57]} 2. Nf3 {[%clk 0:02:58]}  d5 {[%clk 0:02:56]} 3. Nc3 {[%clk 0:02:58]}  dxe4 {[%clk 0:02:55]} 4. Nxe4 {[%clk 0:02:58]}  Nf6 {[%clk 0:02:56]} 5. Qe2 {[%clk 0:02:58]}  Nxe4 {[%clk 0:02:56]} 6. Qxe4 {[%clk 0:02:58]}  Qd5 {[%clk 0:02:56]} 7. Qh4 {[%clk 0:02:57]}  Bf5 {[%clk 0:02:54]} 8. Bc4 {[%clk 0:02:53]}  Qd6 {[%clk 0:02:42]} 9. d3 {[%clk 0:02:46]}  e6 {[%clk 0:02:39]} 10. O-O {[%clk 0:02:44]}  Be7 {[%clk 0:02:39]} 11. Bg5 {[%clk 0:02:27]}  Bxg5 {[%clk 0:02:34]} 12. Qxg5 {[%clk 0:02:27]}  O-O {[%clk 0:02:35]} 13. Nh4 {[%clk 0:02:21]}  Bg6 {[%clk 0:02:35]} 14. Rae1 {[%clk 0:02:08]}  Nd7 {[%clk 0:02:32]} 15. Kh1 {[%clk 0:01:58]}  Qc5 {[%clk 0:01:53]} 16. Qg3 {[%clk 0:01:48]}  Rfe8 {[%clk 0:01:25]} 17. Bb3 {[%clk 0:01:39]}  a5 {[%clk 0:01:23]} 18. a4 {[%clk 0:01:36]}  Qd4 {[%clk 0:01:18]} 19. Nxg6 {[%clk 0:01:21]}  hxg6 {[%clk 0:01:18]} 20. c3 {[%clk 0:01:21]}  Qb6 {[%clk 0:01:09]} 21. Bc4 {[%clk 0:01:13]}  Qxb2 {[%clk 0:01:07]} 22. Rb1 {[%clk 0:01:13]}  Qxc3 {[%clk 0:01:02]} 23. Rxb7 {[%clk 0:01:12]}  Nf6 {[%clk 0:01:01]} 24. Qc7 {[%clk 0:01:07]}  Rf8 {[%clk 0:01:00]} 25. Bxe6 {[%clk 0:01:05]}  Qxd3 {[%clk 0:00:55]} 26. Bxf7+ {[%clk 0:01:03]}  Kh8 {[%clk 0:00:42]} 27. Kg1 {[%clk 0:00:52]}  Nh7 {[%clk 0:00:19]} 28. Qxc6 {[%clk 0:00:35]}  Ra6 {[%clk 0:00:16]} 29. Qc5 {[%clk 0:00:31]}  Rd6 {[%clk 0:00:16]} 30. Bc4 {[%clk 0:00:23]}  Qd2 {[%clk 0:00:12]} 31. Bb5 {[%clk 0:00:18]}  Nf6 {[%clk 0:00:08]} 32. Qc1 {[%clk 0:00:17]}  Ne4 {[%clk 0:00:07]} 33. Qxd2 {[%clk 0:00:16]}  Rxd2 {[%clk 0:00:07]} 34. Rb6 {[%clk 0:00:09]}  Nxf2 {[%clk 0:00:06]} 35. Rxg6 {[%clk 0:00:09]}  Rf4 {[%clk 0:00:02]} 36. Rg3 {[%clk 0:00:08]}  Nd3 {[%clk 0:00:02]} 37. Rgf3 {[%clk 0:00:06]}  Rxf3 {[%clk 0:00:02]} 38. Rxf3 {[%clk 0:00:05]}  Nb2 {[%clk 0:00:02]} 39. Rf2 {[%clk 0:00:04]}  Rd1+ {[%clk 0:00:02]} 40. Rf1 {[%clk 0:00:04]}  Rd2 {[%clk 0:00:03]} 41. h3 {[%clk 0:00:05]}  Kh7 {[%clk 0:00:02]} 42. Rf2 {[%clk 0:00:05]}  Rd1+ {[%clk 0:00:03]} 43. Rf1 {[%clk 0:00:06]}  Nd3 {[%clk 0:00:03]} 44. Rxd1 {[%clk 0:00:05]} 1-0


[Site "https://www.chess.com"]

[Event "Titled Tuesday Blitz March 21 Early 2023"]
[White "Rastbod, Ali"]
[Black "Hernandez Jimenez, Alexander Andres"]
[WhiteFideId "12567477"]
[BlackFideId "3900452"]
[WhiteElo "2211"]
[BlackElo "2112"]
[Result "1-0"]
[Round "01"]
[TimeControl "180+2"]
[Date "2023.03.21"]
[WhiteClock "0:00:20"]
[BlackClock "0:00:13"]

1. e4 {[%clk 0:02:44]}  c5 {[%clk 0:02:59]} 2. Nc3 {[%clk 0:02:43]}  g6 {[%clk 0:02:57]} 3. g3 {[%clk 0:02:41]}  Nc6 {[%clk 0:02:57]} 4. Bg2 {[%clk 0:02:42]}  Bg7 {[%clk 0:02:57]} 5. d3 {[%clk 0:02:42]}  e6 {[%clk 0:02:54]} 6. Be3 {[%clk 0:02:41]}  Nd4 {[%clk 0:02:49]} 7. Qd2 {[%clk 0:02:35]}  b6 {[%clk 0:02:44]} 8. Bxd4 {[%clk 0:01:42]}  cxd4 {[%clk 0:02:43]} 9. Nb5 {[%clk 0:01:43]}  d5 {[%clk 0:02:05]} 10. Qb4 {[%clk 0:01:31]}  a5 {[%clk 0:01:45]} 11. Qa3 {[%clk 0:01:04]}  Ne7 {[%clk 0:01:29]} 12. Nd6+ {[%clk 0:01:02]}  Kf8 {[%clk 0:01:28]} 13. Nf3 {[%clk 0:00:58]}  dxe4 {[%clk 0:01:21]} 14. Ng5 {[%clk 0:00:55]}  Qd7 {[%clk 0:00:35]} 15. Ndxf7 {[%clk 0:00:44]}  Rg8 {[%clk 0:00:34]} 16. Nxe4 {[%clk 0:00:29]}  Kxf7 {[%clk 0:00:31]} 17. Nd6+ {[%clk 0:00:28]}  Kf8 {[%clk 0:00:28]} 18. Bxa8 {[%clk 0:00:28]}  Ba6 {[%clk 0:00:25]} 19. O-O {[%clk 0:00:26]}  Be5 {[%clk 0:00:25]} 20. Nc4 {[%clk 0:00:23]}  Bc7 {[%clk 0:00:22]} 21. Bg2 {[%clk 0:00:22]}  Kg7 {[%clk 0:00:22]} 22. Rae1 {[%clk 0:00:20]}  Rf8 {[%clk 0:00:20]} 23. Ne5 {[%clk 0:00:20]}  Bxe5 {[%clk 0:00:15]} 24. Rxe5 {[%clk 0:00:21]}  Nf5 {[%clk 0:00:13]} 25. Qb3 {[%clk 0:00:20]}  Rf6 {[%clk 0:00:13]} 26. Qxb6 {[%clk 0:00:20]} 1-0


[Site "https://www.chess.com"]

[Event "Titled Tuesday Blitz March 21 Early 2023"]
[White "Gontcharov, Vladislav"]
[Black "Sanchez, Robert"]
[WhiteFideId "4123492"]
[BlackFideId "2034360"]
[WhiteElo "2470"]
[BlackElo "2185"]
[Result "1-0"]
[Round "01"]
[TimeControl "180+2"]
[Date "2023.03.21"]
[WhiteClock "0:00:34"]
[BlackClock "0:00:48"]

1. d4 {[%clk 0:03:00]}  d5 {[%clk 0:02:59]} 2. c4 {[%clk 0:02:59]}  c6 {[%clk 0:02:59]} 3. Nf3 {[%clk 0:02:57]}  Nf6 {[%clk 0:02:59]} 4. Nc3 {[%clk 0:02:57]}  dxc4 {[%clk 0:02:59]} 5. a4 {[%clk 0:02:57]}  Bf5 {[%clk 0:02:59]} 6. e3 {[%clk 0:02:56]}  e6 {[%clk 0:02:59]} 7. a5 {[%clk 0:02:56]}  Nbd7 {[%clk 0:02:59]} 8. Bxc4 {[%clk 0:02:55]}  Bb4 {[%clk 0:02:58]} 9. Qb3 {[%clk 0:02:37]}  Qe7 {[%clk 0:02:46]} 10. O-O {[%clk 0:02:35]}  O-O {[%clk 0:02:45]} 11. Bd2 {[%clk 0:02:33]}  Rab8 {[%clk 0:02:41]} 12. Rfe1 {[%clk 0:02:12]}  Rfd8 {[%clk 0:02:19]} 13. e4 {[%clk 0:02:05]}  Bg6 {[%clk 0:02:14]} 14. Bg5 {[%clk 0:02:04]}  Bxc3 {[%clk 0:02:00]} 15. bxc3 {[%clk 0:02:04]}  e5 {[%clk 0:02:00]} 16. Nh4 {[%clk 0:01:47]}  b5 {[%clk 0:01:46]} 17. axb6 {[%clk 0:01:42]}  axb6 {[%clk 0:01:45]} 18. Ra7 {[%clk 0:01:33]}  b5 {[%clk 0:01:45]} 19. Nxg6 {[%clk 0:01:05]}  hxg6 {[%clk 0:01:44]} 20. Bxf7+ {[%clk 0:01:05]}  Qxf7 {[%clk 0:01:38]} 21. Qxf7+ {[%clk 0:01:04]}  Kxf7 {[%clk 0:01:38]} 22. dxe5 {[%clk 0:01:04]}  Ne8 {[%clk 0:01:15]} 23. Bxd8 {[%clk 0:01:03]}  Rxd8 {[%clk 0:01:16]} 24. Rd1 {[%clk 0:00:58]}  Ke6 {[%clk 0:01:14]} 25. f4 {[%clk 0:00:56]}  Ke7 {[%clk 0:00:58]} 26. Kf2 {[%clk 0:00:53]}  g5 {[%clk 0:00:56]} 27. g3 {[%clk 0:00:53]}  g6 {[%clk 0:00:56]} 28. Ke3 {[%clk 0:00:52]}  Ng7 {[%clk 0:00:56]} 29. Rd6 {[%clk 0:00:46]}  Ne6 {[%clk 0:00:53]} 30. Rxc6 {[%clk 0:00:44]}  gxf4+ {[%clk 0:00:50]} 31. gxf4 {[%clk 0:00:43]}  Rh8 {[%clk 0:00:50]} 32. f5 {[%clk 0:00:34]}  Nc5 {[%clk 0:00:48]} 33. Rxc5 {[%clk 0:00:34]} 1-0


[Site "https://www.chess.com"]

[Event "Titled Tuesday Blitz March 21 Early 2023"]
[White "Hernandez Bonilla, Amelia"]
[Black "Tillyaev, Ulugbek"]
[WhiteFideId "3900193"]
[BlackFideId "14202441"]
[WhiteElo "2185"]
[BlackElo "2377"]
[Result "0-1"]
[Round "01"]
[TimeControl "180+2"]
[Date "2023.03.21"]
[WhiteClock "0:01:34"]
[BlackClock "0:01:24"]

1. d4 {[%clk 0:02:59]}  c5 {[%clk 0:03:00]} 2. d5 {[%clk 0:02:57]}  e5 {[%clk 0:03:00]} 3. dxe6 {[%clk 0:02:53]}  fxe6 {[%clk 0:02:57]} 4. e4 {[%clk 0:02:52]}  Nc6 {[%clk 0:02:56]} 5. Nf3 {[%clk 0:02:52]}  Nf6 {[%clk 0:02:33]} 6. e5 {[%clk 0:02:36]}  Nd5 {[%clk 0:01:58]} 7. c4 {[%clk 0:02:29]}  Nde7 {[%clk 0:01:44]} 8. Bg5 {[%clk 0:02:12]}  h6 {[%clk 0:01:37]} 9. Bh4 {[%clk 0:02:10]}  g5 {[%clk 0:01:33]} 10. Bg3 {[%clk 0:02:10]}  Bg7 {[%clk 0:01:33]} 11. Bd3 {[%clk 0:02:02]}  O-O {[%clk 0:01:31]} 12. Qe2 {[%clk 0:02:00]}  Nf5 {[%clk 0:01:30]} 13. Nc3 {[%clk 0:01:53]}  g4 {[%clk 0:01:30]} 14. Nh4 {[%clk 0:01:43]}  Nxh4 {[%clk 0:01:27]} 15. Bxh4 {[%clk 0:01:36]}  Qxh4 {[%clk 0:01:27]} 16. O-O-O {[%clk 0:01:35]}  Nxe5 {[%clk 0:01:26]} 17. Bb1 {[%clk 0:01:35]}  Rxf2 {[%clk 0:01:24]} 18. Qe4 {[%clk 0:01:34]}  Qg5+ {[%clk 0:01:24]} 0-1


[Site "https://www.chess.com"]

[Event "Titled Tuesday Blitz March 21 Early 2023"]
[White "Jeet, Jain"]
[Black "Delorme, Alban"]
[WhiteFideId "5073022"]
[BlackFideId "623636"]
[WhiteElo "2067"]
[BlackElo "2196"]
[Result "1-0"]
[Round "01"]
[TimeControl "180+2"]
[Date "2023.03.21"]
[WhiteClock "0:02:21"]
[BlackClock "0:00:38"]

1. Nf3 {[%clk 0:02:59]}  Nf6 {[%clk 0:02:59]} 2. g3 {[%clk 0:02:58]}  g6 {[%clk 0:03:00]} 3. Bg2 {[%clk 0:02:59]}  Bg7 {[%clk 0:03:00]} 4. O-O {[%clk 0:03:00]}  O-O {[%clk 0:03:01]} 5. d4 {[%clk 0:03:00]}  d5 {[%clk 0:03:01]} 6. b3 {[%clk 0:02:59]}  c5 {[%clk 0:02:47]} 7. e3 {[%clk 0:02:56]}  Nc6 {[%clk 0:02:46]} 8. Bb2 {[%clk 0:02:56]}  Ne4 {[%clk 0:02:37]} 9. a3 {[%clk 0:02:53]}  Bf5 {[%clk 0:02:22]} 10. Nh4 {[%clk 0:02:49]}  e6 {[%clk 0:02:22]} 11. Nxf5 {[%clk 0:02:48]}  exf5 {[%clk 0:02:22]} 12. c3 {[%clk 0:02:48]}  Rc8 {[%clk 0:02:16]} 13. Nd2 {[%clk 0:02:47]}  cxd4 {[%clk 0:02:11]} 14. cxd4 {[%clk 0:02:36]}  Qd7 {[%clk 0:02:05]} 15. b4 {[%clk 0:02:35]}  a6 {[%clk 0:02:02]} 16. Nb3 {[%clk 0:02:35]}  Rfd8 {[%clk 0:01:51]} 17. Qd3 {[%clk 0:02:35]}  Ne7 {[%clk 0:01:35]} 18. Rac1 {[%clk 0:02:27]}  Rxc1 {[%clk 0:01:23]} 19. Rxc1 {[%clk 0:02:28]}  Rc8 {[%clk 0:01:21]} 20. Nc5 {[%clk 0:02:28]}  Nxc5 {[%clk 0:01:09]} 21. bxc5 {[%clk 0:02:28]}  b6 {[%clk 0:01:06]} 22. cxb6 {[%clk 0:02:24]}  Rxc1+ {[%clk 0:01:06]} 23. Bxc1 {[%clk 0:02:25]}  Qc6 {[%clk 0:01:07]} 24. Qb1 {[%clk 0:02:25]}  Qb7 {[%clk 0:00:58]} 25. a4 {[%clk 0:02:25]}  a5 {[%clk 0:00:58]} 26. Bd2 {[%clk 0:02:25]}  Nc6 {[%clk 0:00:54]} 27. Bxd5 {[%clk 0:02:23]}  Bf8 {[%clk 0:00:38]} 28. Qb5 {[%clk 0:02:21]} 1-0


[Site "https://www.chess.com"]